fUSD/lending_fUSD_20260126
["ID","MTS","AMOUNT","RATE_DAILY","PERIOD"]
[403600277,1769411443320,-558.94,0.00015534,2]
[403600278,1769411443330,-150.0,0.00015534,2]
[403600279,1769411443339,-558.94,0.00015534,2]
[403600280,1769411443348,-179.98,0.00015534,2]
[403600281,1769411443358,-150.0,0.00015534,2]
[403600282,1769411443367,-172.23,0.00015534,2]
[403600283,1769411443378,-172.23,0.00015534,2]
[403600284,1769411443388,-173.18,0.00015534,2]
[403600285,1769411443397,-359.86,0.00015534,2]
[403600286,1769411443407,-150.0,0.00015534,2]
[403600287,1769411443417,-558.94,0.00015534,2]
[403600288,1769411443426,-302.96,0.00015534,2]
[403600289,1769411443435,-558.94,0.00015534,2]
[403600290,1769411443444,-172.23,0.00015534,2]
[403600291,1769411443454,-172.23,0.00015534,2]
[403600292,1769411443463,-558.94,0.00015534,2]
[403600293,1769411443473,-172.23,0.00015534,2]
[403600294,1769411443482,-558.94,0.00015534,2]
[403600295,1769411443491,-558.94,0.00015534,2]
[403600296,1769411443501,-172.23,0.00015534,2]
[403600297,1769411443511,-171.93,0.00015534,2]
[403600298,1769411443520,-727.34,0.00015534,2]
[403600299,1769411443529,-500.0,0.00015545,2]
[403600300,1769411443539,-650.0,0.00015545,2]
[403600301,1769411443549,-500.0,0.00015545,2]
[403600302,1769411443558,-500.0,0.00015545,2]
[403600303,1769411443568,-505.16925111,0.00015545,2]
[403600304,1769411443577,-500.0,0.00015545,2]
[403600305,1769411443587,-2500.0,0.00015547,2]
[403600306,1769411443596,-923.22863654,0.00015547,2]
[403600307,1769411443605,-451.0,0.00015554,2]
[403600308,1769411443615,-352.29442856,0.00015554,2]
[403600309,1769411443626,-211.15358736,0.00015554,2]
[403600310,1769411443635,-511.39357111,0.00015554,2]
[403600311,1769411443645,-241.96889035,0.00015555,2]
[403600312,1769411443654,-174.87882675,0.00015555,2]
[403600313,1769411443663,-304.20833881,0.00015555,2]
[403600314,1769411443672,-646.47,0.00015591,3]
[403600315,1769411443683,-432.49577477,0.00015591,2]
[403600316,1769411443692,-183.96759495,0.000156,2]
[403600317,1769411443703,-650.0,0.000156,2]
[403600318,1769411443714,-500.0,0.000156,2]
[403600319,1769411443724,-500.0,0.000156,2]
[403600320,1769411443733,-500.0,0.000156,2]
[403600321,1769411443742,-322.6107,0.00015601,2]
[403600322,1769411443753,-209.40437684,0.00015601,2]
[403600323,1769411443762,-250.0,0.00015601,2]
[403600324,1769411443771,-2500.0,0.00015601,2]
[403600325,1769411443782,-209.40437684,0.00015601,2]
[403600326,1769411443791,-250.0,0.00015601,2]
[403600327,1769411443800,-2500.0,0.00015601,2]
[403600328,1769411443809,-250.0,0.00015601,2]
[403600329,1769411443818,-2500.0,0.00015601,2]
[403600330,1769411443827,-250.0,0.00015601,2]
[403600331,1769411443836,-250.0,0.00015601,2]
[403600332,1769411443846,-250.0,0.00015601,2]
[403600333,1769411443855,-2500.0,0.00015601,2]
[403600334,1769411443864,-250.0,0.00015601,2]
[403600335,1769411443873,-250.0,0.00015601,2]
[403600336,1769411443883,-2500.0,0.00015601,2]
[403600337,1769411443892,-250.0,0.00015601,2]
[403600338,1769411443901,-854.2589148,0.00015601,2]
[403600339,1769411443911,-252.5692863,0.00015601,2]
[403600340,1769411443920,-2500.0,0.00015601,2]
[403600341,1769411443930,-250.0,0.00015601,2]
[403600342,1769411443939,-2500.0,0.00015601,2]
[403600343,1769411443948,-250.0,0.00015601,2]
[403600344,1769411443957,-174.61919141,0.00015601,2]
[403600345,1769411443967,-250.0,0.00015601,2]
[403600346,1769411443977,-250.0,0.00015601,2]
[403600347,1769411443986,-840.76606738,0.00015601,2]
[403600348,1769411443995,-250.0,0.00015601,2]
[403600349,1769411444004,-721.12765535,0.00015601,2]
[403600350,1769411444013,-250.0,0.00015601,2]
[403600351,1769411444022,-250.0,0.00015601,2]
[403600352,1769411444031,-250.0,0.00015601,2]
[403600353,1769411444040,-250.0,0.00015601,2]
[403600354,1769411444050,-250.0,0.00015601,2]
[403600355,1769411444059,-250.0,0.00015601,2]
[403600356,1769411444068,-250.0,0.00015601,2]
[403600357,1769411444078,-250.0,0.00015601,2]
[403600358,1769411444087,-209.40437684,0.00015601,2]
[403600359,1769411444096,-250.0,0.00015601,2]
[403600360,1769411444106,-250.0,0.00015601,2]
[403600361,1769411444115,-151.0,0.00015601,2]
[403600362,1769411444124,-250.0,0.00015601,2]
[403600363,1769411444133,-250.0,0.00015601,2]
[403600364,1769411444142,-250.0,0.00015601,2]
[403600365,1769411444151,-250.0,0.00015601,2]
[403600366,1769411444160,-250.0,0.00015601,2]
[403600367,1769411444170,-250.0,0.00015601,2]
[403600368,1769411444179,-250.0,0.00015601,2]
[403600369,1769411444188,-250.0,0.00015601,2]
[403600370,1769411444199,-250.0,0.00015601,2]
[403600371,1769411444208,-250.0,0.00015601,2]
[403600372,1769411444217,-500.0,0.00015601,2]
[403600373,1769411444226,-250.0,0.00015601,2]
[403600374,1769411444236,-500.0,0.00015601,2]
[403600375,1769411444246,-500.0,0.00015601,2]
[403600376,1769411444259,-151.0,0.00015601,2]
[403600377,1769411444268,-500.0,0.00015601,2]
[403600378,1769411444278,-3000.0,0.00015601,2]
[403600379,1769411444287,-500.0,0.00015601,2]
[403600380,1769411444296,-3000.0,0.00015601,2]
[403600381,1769411444306,-500.0,0.00015601,2]
[403600382,1769411444316,-500.0,0.00015601,2]
[403600383,1769411444326,-3000.0,0.00015601,2]
[403600384,1769411444335,-500.0,0.00015601,2]
[403600385,1769411444344,-3000.0,0.00015601,2]
[403600386,1769411444354,-1000.0,0.00015601,2]
[403600387,1769411444364,-500.0,0.00015601,2]
[403600388,1769411444374,-752.7847282,0.00015601,2]
[403600389,1769411444383,-500.0,0.00015601,2]
[403600390,1769411444393,-500.0,0.00015601,2]
[403600391,1769411444402,-1000.0,0.00015601,2]
[403600392,1769411444412,-1000.0,0.00015601,2]
[403600393,1769411444421,-1000.0,0.00015601,2]
[403600394,1769411444431,-1000.0,0.00015601,2]
[403600395,1769411444441,-1000.0,0.00015601,2]
[403600396,1769411444451,-1000.0,0.00015601,2]
[403600397,1769411444462,-1000.0,0.00015601,2]
[403600398,1769411444472,-151.0,0.00015601,2]
[403600399,1769411444482,-1000.0,0.00015601,2]
[403600400,1769411444492,-250.0,0.00015601,2]
[403600401,1769411444503,-151.0,0.00015601,2]
[403600402,1769411444513,-151.0,0.00015601,2]
[403600403,1769411444523,-1000.0,0.00015601,2]
[403600404,1769411444533,-250.0,0.00015601,2]
[403600405,1769411444542,-151.0,0.00015601,2]
[403600406,1769411444552,-1000.0,0.00015601,2]
[403600407,1769411444561,-250.0,0.00015601,2]
[403600408,1769411444572,-151.0,0.00015601,2]
[403600409,1769411444581,-1000.0,0.00015601,2]
[403600410,1769411444591,-250.0,0.00015601,2]
[403600411,1769411444600,-151.0,0.00015601,2]
[403600412,1769411444610,-250.0,0.00015601,2]
[403600413,1769411444620,-151.0,0.00015601,2]
[403600414,1769411444630,-250.0,0.00015601,2]
[403600415,1769411444643,-250.0,0.00015601,2]
[403600416,1769411444652,-250.0,0.00015601,2]
[403600417,1769411444662,-151.0,0.00015601,2]
[403600418,1769411444671,-250.0,0.00015601,2]
[403600419,1769411444680,-250.0,0.00015601,2]
[403600420,1769411444689,-250.0,0.00015601,2]
[403600421,1769411444699,-151.0,0.00015601,2]
[403600422,1769411444712,-250.0,0.00015601,2]
[403600423,1769411444721,-250.0,0.00015601,2]
[403600424,1769411444731,-250.0,0.00015601,2]
[403600425,1769411444740,-151.0,0.00015601,2]
[403600426,1769411444751,-250.0,0.00015601,2]
[403600427,1769411444760,-250.0,0.00015601,2]
[403600428,1769411444770,-250.0,0.00015601,2]
[403600429,1769411444780,-151.0,0.00015601,2]
[403600430,1769411444789,-250.0,0.00015601,2]
[403600431,1769411444799,-250.0,0.00015601,2]
[403600432,1769411444808,-250.0,0.00015601,2]
[403600433,1769411444818,-151.0,0.00015601,2]
[403600434,1769411444827,-250.0,0.00015601,2]
[403600435,1769411444836,-250.0,0.00015601,2]
[403600436,1769411444845,-250.0,0.00015601,2]
[403600437,1769411444855,-250.0,0.00015601,2]
[403600438,1769411444864,-250.0,0.00015601,2]
[403600439,1769411444873,-250.0,0.00015601,2]
[403600440,1769411444882,-250.0,0.00015601,2]
[403600441,1769411444892,-250.0,0.00015601,2]
[403600442,1769411444901,-220.0,0.00015601,2]
[403600443,1769411444910,-250.0,0.00015601,2]
[403600444,1769411444920,-250.0,0.00015601,2]
[403600445,1769411444931,-344.90178664,0.00015601,2]
[403600446,1769411444940,-250.0,0.00015601,2]
[403600447,1769411444949,-250.0,0.00015601,2]
[403600448,1769411444958,-250.0,0.00015601,2]
[403600449,1769411444968,-578.20924308,0.00015601,2]
[403600450,1769411444977,-451.0,0.00015609,2]
[403600451,1769411444987,-548.60289183,0.00015646,2]
[403600452,1769411444996,-500.66687926,0.00015646,2]
[403600453,1769411445005,-500.0,0.00015646,2]
[403600454,1769411445014,-500.0,0.00015646,2]
[403600455,1769411445026,-500.0,0.00015646,2]
[403600456,1769411445035,-500.0,0.00015646,2]
[403600457,1769411445045,-500.0,0.00015646,2]
[403600458,1769411445056,-500.0,0.00015646,2]
[403600459,1769411445066,-500.0,0.00015646,2]
[403600460,1769411445076,-500.0,0.00015646,2]
[403600461,1769411445086,-500.0,0.00015646,2]
[403600462,1769411445095,-500.0,0.00015646,2]
[403600463,1769411445105,-500.0,0.00015646,2]
[403600464,1769411445115,-605.56676795,0.00015646,2]
[403600465,1769411445126,-526.378249,0.00015646,2]
[403600466,1769411445137,-500.0,0.00015646,2]
[403600467,1769411445147,-500.0,0.00015646,2]
[403600468,1769411445157,-500.0,0.00015646,2]
[403600469,1769411445166,-500.0,0.00015646,2]
[403600470,1769411445175,-500.0,0.00015646,2]
[403600471,1769411445184,-575.22582116,0.00015646,2]
[403600472,1769411445194,-500.0,0.00015646,2]
[403600473,1769411445203,-400.42737409,0.00015646,2]
[403600474,1769411445213,-150.0,0.00015646,2]
[403600475,1769411445222,-675.38550237,0.00015646,2]
[403600476,1769411445231,-650.0,0.00015655,2]
[403600477,1769411445240,-500.0,0.00015655,2]
[403600478,1769411445250,-624.52721142,0.00015655,2]
[403600479,1769411445261,-500.0,0.00015655,2]
[403600480,1769411445270,-451.0,0.00015664,2]
[403600481,1769411445280,-1800.0,0.000157,5]
[403600482,1769411445289,-650.0,0.0001571,2]
[403600483,1769411445298,-500.0,0.0001571,2]
[403600484,1769411445307,-500.0,0.0001571,2]
[403600485,1769411445316,-451.0,0.00015718,2]
[403600486,1769411445325,-11572.55364352,0.00015727,2]
[403600487,1769411445334,-650.0,0.00015765,2]
[403600488,1769411445344,-500.0,0.00015765,2]
[403600489,1769411445353,-500.0,0.00015765,2]
[403600490,1769411445364,-451.0,0.00015773,2]
[403600491,1769411445373,-3700.0,0.000158,5]
[403600492,1769411445383,-889.92,0.00015808,2]
[403600493,1769411445392,-1204.0,0.00015808,2]
[403600494,1769411445401,-4831.0,0.00015808,2]
[403600495,1769411445411,-1315.0,0.00015808,2]
[403600496,1769411445421,-2455.897,0.00015808,2]
[403600497,1769411445430,-650.0,0.00015819,2]
[403600498,1769411445440,-500.0,0.00015819,2]
[403600499,1769411445450,-500.0,0.00015819,2]
[403600500,1769411445459,-1000.0,0.00015825,2]
[403600501,1769411445468,-451.0,0.00015828,2]
[403600502,1769411445478,-1000.0,0.00015836,2]
[403600503,1769411445487,-33257.5075,0.00015861,2]
[403600504,1769411445496,-1000.0,0.00015861,2]
[403600505,1769411445506,-650.0,0.00015874,2]
[403600506,1769411445516,-225.0,0.00015874,2]
[403600507,1769411445525,-500.0,0.00015874,2]
[403600508,1769411445535,-451.0,0.00015883,2]
[403600509,1769411445544,-217.85407436,0.00015884,2]
[403600510,1769411445554,-248.97608498,0.00015884,2]
[403600511,1769411445563,-6719.06641575,0.0001589,2]
[403600512,1769411445572,-304.20833879,0.0001589,2]
[403600513,1769411445582,-5600.0,0.000159,5]
[403600514,1769411445591,-1000.0,0.00015918,2]
[403600515,1769411445601,-650.0,0.00015929,2]
[403600516,1769411445610,-451.0,0.00015938,2]
[403600517,1769411445619,-241.96889033,0.00015946,2]
[403600518,1769411445628,-3442.48960295,0.0001596,2]
[403600519,1769411445638,-753.04363975,0.00015976,2]
[403600520,1769411445648,-650.0,0.00015984,2]
[403600521,1769411445658,-451.0,0.00015992,2]
[403600522,1769411445667,-241.48,0.00015996,2]
[403600523,1769411445677,-11572.55364352,0.00015998,2]
[403600524,1769411445687,-863.24539887,0.00016,2]
[403600525,1769411445697,-150.0,0.00016,2]
[403600526,1769411445709,-200.0,0.00016,2]
[403600527,1769411445719,-1662.0,0.00016,2]
[403600528,1769411445728,-2508.0,0.00016,2]
[403600530,1769411445738,-150.0,0.00016008,2]
[403600532,1769411445747,-150.0,0.00016014,2]
[403600534,1769411445756,-478.34,0.00016014,2]
[403600536,1769411445765,-150.0,0.00016014,2]
[403600538,1769411445776,-468.76,0.00016014,2]
[403600540,1769411445785,-861.72,0.00016014,2]
[403600542,1769411445795,-152.1,0.00016014,2]
[403600544,1769411445805,-179.93,0.00016014,2]
[403600546,1769411445814,-179.93,0.00016014,2]
[403600548,1769411445823,-400.0,0.00016022,2]
[403600550,1769411445833,-151.0,0.00016027,2]
[403600552,1769411445849,-151.0,0.00016027,2]
[403600554,1769411445858,-151.0,0.00016027,2]
[403600556,1769411445868,-151.0,0.00016027,2]
[403600557,1769411445878,-151.0,0.00016027,2]
[403600558,1769411445887,-151.0,0.00016027,2]
[403600559,1769411445897,-151.0,0.00016027,2]
[403600560,1769411445907,-151.0,0.00016027,2]
[403600561,1769411445916,-188.07834286,0.00016027,2]
[403600562,1769411445926,-165.67,0.00016036,2]
[403600563,1769411445936,-500.0,0.00016038,2]
[403600564,1769411445945,-324.63461078,0.00016038,2]
[403600565,1769411445954,-183.20047453,0.00016038,2]
[403600566,1769411445964,-650.0,0.00016039,2]
[403600567,1769411445973,-16668.0700973,0.00016042,2]
[403600568,1769411445982,-500.0,0.00016043,2]
[403600569,1769411445991,-150.0,0.00016043,2]
[403600570,1769411446001,-3098.726366,0.00016044,2]
[403600571,1769411446010,-283906.0750221,0.00016044,2]
[403600572,1769411446019,-4719.2470059,0.00016044,2]
[403600573,1769411446029,-34103.0440491,0.00016044,2]
[403600574,1769411446038,-14682.8630096,0.00016044,2]
[403600575,1769411446047,-53530.9793157,0.00016044,2]
[403600576,1769411446056,-451.0,0.00016047,2]
[403600577,1769411446065,-200.0,0.00016048,2]
[403600578,1769411446075,-1266.0,0.00016048,2]
[403600579,1769411446085,-1266.0,0.00016048,2]
[403600580,1769411446094,-1266.0,0.00016048,2]
[403600581,1769411446105,-1266.0,0.00016048,2]
[403600582,1769411446115,-531.31229153,0.00016048,2]
[403600583,1769411446124,-332.97181565,0.00016048,2]
[403600584,1769411446133,-1000.0,0.00016048,2]
[403600585,1769411446144,-329.58686501,0.00016048,2]
[403600586,1769411446153,-1266.0,0.00016048,2]
[403600587,1769411446163,-1000.0,0.00016052,2]
[403600588,1769411446173,-500.0,0.0001606,2]
[403600589,1769411446182,-500.0,0.0001606,2]
[403600590,1769411446192,-304.50114087,0.0001606,2]
[403600591,1769411446202,-500.0,0.0001606,2]
[403600592,1769411446211,-500.0,0.0001606,2]
[403600593,1769411446220,-500.0,0.0001606,2]
[403600594,1769411446230,-500.0,0.0001606,2]
[403600595,1769411446239,-500.0,0.0001606,2]
[403600596,1769411446248,-500.0,0.0001606,2]
[403600597,1769411446258,-2090.42570208,0.00016062,2]
[403600598,1769411446267,-889.92,0.00016082,2]
[403600599,1769411446277,-567.0,0.00016083,2]
[403600600,1769411446286,-500.0,0.00016092,2]
[403600601,1769411446295,-650.0,0.00016093,2]
[403600602,1769411446304,-150.0,0.000161,2]
[403600603,1769411446314,-451.0,0.00016102,2]
[403600604,1769411446323,-3648.34,0.00016116,2]
[403600605,1769411446333,-650.0,0.00016148,2]
[403600606,1769411446342,-179.77886385,0.00016149,2]
[403600607,1769411446352,-211.39174164,0.00016149,2]
[403600608,1769411446362,-885.86649465,0.00016149,2]
[403600609,1769411446371,-181.08010149,0.00016149,2]
[403600610,1769411446381,-209.40437684,0.00016149,2]
[403600611,1769411446390,-151.0,0.00016149,2]
[403600612,1769411446400,-151.2290817,0.00016149,2]
[403600613,1769411446409,-451.0,0.00016157,2]
[403600614,1769411446423,-150.0,0.000162,2]
[403600615,1769411446433,-650.0,0.00016203,2]
[403600616,1769411446446,-200.0,0.00016208,2]
[403600617,1769411446455,-451.0,0.00016211,2]
[403600619,1769411446465,-388.0,0.00016224,2]
[403600620,1769411446475,-304.20833879,0.00016225,2]
[403600621,1769411446485,-1680.0,0.00016235,2]
[403600622,1769411446494,-650.0,0.00016258,2]
[403600623,1769411446504,-463.0,0.00016266,2]
[403600624,1769411446514,-11572.55364352,0.0001627,2]
[403600625,1769411446524,-155.0,0.00016271,2]
[403600626,1769411446533,-151.0,0.00016287,2]
[403600627,1769411446543,-400.55876,0.00016287,2]
[403600628,1769411446552,-400.55876,0.00016287,2]
[403600629,1769411446563,-400.55876,0.00016287,2]
[403600630,1769411446573,-400.55876,0.00016287,2]
[403600631,1769411446584,-150.0,0.00016288,2]
[403600632,1769411446594,-266.0,0.00016288,2]
[403600633,1769411446603,-150.139,0.00016288,2]
[403600634,1769411446613,-177.537,0.00016288,2]
[403600635,1769411446622,-167.825,0.00016288,2]
[403600636,1769411446632,-150.074,0.00016288,2]
[403600637,1769411446642,-199.072,0.00016288,2]
[403600638,1769411446651,-150.0,0.00016288,2]
[403600639,1769411446661,-150.157,0.00016288,2]
[403600640,1769411446671,-150.0,0.00016288,2]
[403600641,1769411446682,-162.08,0.00016288,2]
[403600642,1769411446691,-3477.0,0.00016288,2]
[403600643,1769411446700,-618.724,0.00016288,2]
[403600644,1769411446715,-210.327,0.00016288,2]
[403600645,1769411446724,-1269.0,0.00016288,2]
[403600646,1769411446734,-916.0,0.00016288,2]
[403600647,1769411446743,-2561.988,0.00016294,2]
[403600649,1769411446753,-187.248,0.00016294,2]
[403600651,1769411446762,-152.10118326,0.000163,2]
[403600653,1769411446771,-1000.0,0.00016307,2]
[403600655,1769411446781,-650.0,0.00016312,2]
[403600657,1769411446790,-200.0,0.00016323,2]
[403600659,1769411446799,-1000.0,0.00016329,2]
[403600661,1769411446808,-241.96889033,0.00016337,2]
[403600663,1769411446818,-889.92,0.00016356,2]
[403600665,1769411446827,-670.0,0.00016367,2]
[403600667,1769411446836,-171.44,0.00016375,2]
[403600669,1769411446845,-10390.0,0.00016377,2]
[403600671,1769411446854,-247.5036,0.00016377,2]
[403600673,1769411446863,-247.5036,0.00016377,2]
[403600675,1769411446873,-247.5036,0.00016377,2]
[403600677,1769411446882,-247.5036,0.00016377,2]
[403600679,1769411446892,-262.27887516,0.00016381,2]
[403600681,1769411446901,-158.54,0.00016391,2]
[403600683,1769411446911,-837.0,0.000164,2]
[403600685,1769411446920,-1086.0,0.000164,2]
[403600687,1769411446929,-1086.0,0.000164,2]
[403600689,1769411446939,-1086.0,0.000164,2]
[403600691,1769411446949,-1086.0,0.000164,2]
[403600694,1769411446958,-1086.0,0.000164,2]
[403600695,1769411446967,-1086.0,0.000164,2]
[403600698,1769411446977,-837.0,0.000164,2]
[403600699,1769411446986,-163.0,0.000164,2]
[403600701,1769411446996,-163.0,0.000164,2]
[403600704,1769411447005,-1086.0,0.000164,2]
[403600705,1769411447015,-276.05,0.00016414,2]
[403600707,1769411447024,-205.61,0.00016418,2]
[403600709,1769411447034,-276.04264937,0.00016418,2]
[403600712,1769411447044,-1757.21,0.00016438,2]
[403600713,1769411447054,-1757.21,0.00016438,2]
[403600715,1769411447063,-1757.21,0.00016438,2]
[403600718,1769411447073,-1757.21,0.00016438,2]
[403600720,1769411447082,-1757.21,0.00016438,2]
[403600722,1769411447092,-1757.21,0.00016438,2]
[403600723,1769411447101,-1757.21,0.00016438,2]
[403600725,1769411447110,-1757.21,0.00016438,2]
[403600727,1769411447119,-1757.21,0.00016438,2]
[403600729,1769411447129,-1757.21,0.00016438,2]
[403600731,1769411447138,-1757.21,0.00016438,2]
[403600733,1769411447147,-1757.21,0.00016438,2]
[403600735,1769411447156,-1757.21,0.00016438,2]
[403600737,1769411447166,-1757.21,0.00016438,2]
[403600738,1769411447176,-1757.21,0.00016438,2]
[403600739,1769411447185,-1757.21,0.00016438,2]
[403600740,1769411447195,-1757.21,0.00016438,2]
[403600741,1769411447206,-1757.21,0.00016438,2]
[403600742,1769411447215,-1757.21,0.00016438,2]
[403600743,1769411447225,-1757.21,0.00016438,2]
[403600745,1769411447235,-1757.21,0.00016438,2]
[403600747,1769411447245,-1757.21,0.00016438,2]
[403600749,1769411447254,-1757.21,0.00016438,2]
[403600751,1769411447263,-1757.43827204,0.00016438,2]
[403600753,1769411447273,-151.0,0.00016438,2]
[403600754,1769411447283,-645.62425814,0.00016438,2]
[403600755,1769411447293,-645.62425814,0.00016438,2]
[403600756,1769411447302,-645.62425814,0.00016438,2]
[403600757,1769411447312,-645.62425814,0.00016438,2]
[403600758,1769411447502,-645.62425814,0.00016438,2]
[403600759,1769411447541,-645.62425814,0.00016438,2]
[403600760,1769411447551,-645.62425814,0.00016438,2]
[403600761,1769411447560,-645.62425814,0.00016438,2]
[403600762,1769411447570,-645.62425814,0.00016438,2]
[403600763,1769411447579,-645.62425814,0.00016438,2]
[403600764,1769411447588,-645.62425814,0.00016438,2]
[403600765,1769411447599,-645.62425814,0.00016438,2]
[403600766,1769411447608,-645.62425814,0.00016438,2]
[403600767,1769411447618,-645.62425814,0.00016438,2]
[403600768,1769411447627,-645.62425814,0.00016438,2]
[403600769,1769411447637,-645.62425814,0.00016438,2]
[403600770,1769411447647,-645.62425814,0.00016438,2]
[403600771,1769411447657,-645.62425814,0.00016438,2]
[403600772,1769411447666,-645.62425814,0.00016438,2]
[403600773,1769411447676,-645.62425814,0.00016438,2]
[403600774,1769411447687,-645.62425814,0.00016438,2]
[403600775,1769411447696,-645.62425814,0.00016438,2]
[403600776,1769411447709,-645.62425814,0.00016438,2]
[403600777,1769411447719,-645.62425814,0.00016438,2]
[403600778,1769411447728,-645.62425814,0.00016438,2]
[403600779,1769411447737,-645.62425814,0.00016438,2]
[403600780,1769411447747,-645.62425814,0.00016438,2]
[403600781,1769411447757,-645.62425814,0.00016438,2]
[403600782,1769411447766,-645.62425814,0.00016438,2]
[403600783,1769411447776,-645.62425814,0.00016438,2]
[403600784,1769411447786,-645.62425814,0.00016438,2]
[403600785,1769411447795,-645.62425814,0.00016438,2]
[403600786,1769411447805,-645.62425814,0.00016438,2]
[403600787,1769411447814,-645.62425814,0.00016438,2]
[403600788,1769411447825,-645.62425814,0.00016438,2]
[403600789,1769411447835,-645.62425814,0.00016438,2]
[403600790,1769411447845,-645.62425814,0.00016438,2]
[403600791,1769411447854,-645.62425814,0.00016438,2]
[403600792,1769411447863,-645.62425814,0.00016438,2]
[403600793,1769411447872,-645.62425814,0.00016438,2]
[403600794,1769411447882,-645.62425814,0.00016438,2]
[403600795,1769411447891,-645.62425814,0.00016438,2]
[403600796,1769411447902,-645.62425814,0.00016438,2]
[403600797,1769411447912,-640.35385603,0.00016438,2]
[403600798,1769411447922,-640.35385603,0.00016438,2]
[403600799,1769411447931,-640.35385603,0.00016438,2]
[403600800,1769411447941,-640.35385603,0.00016438,2]
[403600801,1769411447950,-640.35385603,0.00016438,2]
[403600802,1769411447959,-640.35385603,0.00016438,2]
[403600803,1769411447969,-640.35385603,0.00016438,2]
[403600804,1769411447979,-640.35385603,0.00016438,2]
[403600805,1769411447988,-640.35385603,0.00016438,2]
[403600806,1769411447997,-640.35385603,0.00016438,2]
[403600807,1769411448008,-640.35385603,0.00016438,2]
[403600808,1769411448017,-640.35385603,0.00016438,2]
[403600809,1769411448026,-640.35385603,0.00016438,2]
[403600810,1769411448035,-640.35385603,0.00016438,2]
[403600811,1769411448044,-640.35385603,0.00016438,2]
[403600812,1769411448054,-640.35385603,0.00016438,2]
[403600813,1769411448063,-640.35385603,0.00016438,2]
[403600814,1769411448072,-640.35385603,0.00016438,2]
[403600815,1769411448081,-640.35385603,0.00016438,2]
[403600816,1769411448090,-640.35385603,0.00016438,2]
[403600817,1769411448100,-640.35385603,0.00016438,2]
[403600818,1769411448109,-640.35385603,0.00016438,2]
[403600819,1769411448119,-640.35385603,0.00016438,2]
[403600820,1769411448128,-640.35385603,0.00016438,2]
[403600821,1769411448137,-640.35385603,0.00016438,2]
[403600822,1769411448147,-640.35385603,0.00016438,2]
[403600823,1769411448159,-640.35385603,0.00016438,2]
[403600824,1769411448169,-640.35385603,0.00016438,2]
[403600825,1769411448181,-640.35385603,0.00016438,2]
[403600826,1769411448191,-640.35385603,0.00016438,2]
[403600827,1769411448201,-640.35385603,0.00016438,2]
[403600828,1769411448211,-640.35385603,0.00016438,2]
[403600829,1769411448221,-640.35385603,0.00016438,2]
[403600830,1769411448231,-640.35385603,0.00016438,2]
[403600831,1769411448242,-640.35385603,0.00016438,2]
[403600832,1769411448252,-640.35385603,0.00016438,2]
[403600833,1769411448261,-640.35385603,0.00016438,2]
[403600834,1769411448271,-640.35385603,0.00016438,2]
[403600835,1769411448281,-640.35385603,0.00016438,2]
[403600836,1769411448291,-640.35385603,0.00016438,2]
[403600837,1769411448301,-1511.96,0.00016438,2]
[403600838,1769411448311,-1511.96,0.00016438,2]
[403600839,1769411448320,-1511.96,0.00016438,2]
[403600840,1769411448330,-1511.96,0.00016438,2]
[403600841,1769411448339,-1511.96,0.00016438,2]